[Event "Israeli Open Championship 2019"]
[Site "Jerusalem"]
[Date "2019.12.18"]
[Round "6.14"]
[White "Kuritz, Zvi"]
[Black "Friedland, Moshe"]
[Result "0-1"]
[ECO "B23"]
[WhiteElo "1907"]
[BlackElo "2267"]
[Annotator "ChessBase"]
[PlyCount "74"]
[EventDate "2019.12.12"]
[EventType "swiss"]
[EventCountry "ISR"]
[SourceTitle "playchess.com"]
[Source "ChessBase"]
[SourceQuality "1"]
[TimeControl "5400+30"]

1. e4 {[%emt 0:00:00]} c5 {[%emt 0:00:00]} 2. Nc3 {[%emt 0:00:00]} a6 {[%emt 0:00:00]} 3. a4 {[%emt 0:00:00]} Nc6 {[%emt 0:00:58]} 4. f4 {[%emt 0:00:06]} g6 {[%emt 0:01:22]} 5. Nf3 {[%emt 0:00:59]} Bg7 {[%emt 0:00:06]} 6. Bc4 {[%emt 0:01:27]} d6 {[%emt 0:01:11]} 7. d3 {[%emt 0:06:50]} e6 {[%emt 0:00:07]} 8. Bb3 {[%emt 0:03:21]} Nge7 {[%emt 0:01:24]} 9. Ne2 {[%emt 0:02:33]} d5 10. e5 {[%emt 1:19:44]} Bd7 {[%emt 0:11:50]} 11. c3 {[%emt 0:00:00]} b5 {[%emt 0:01:21]} 12. O-O {[%emt 0:00:00]} Qb6 {[%emt 0:12:43]} 13. Be3 {[%emt 0:00:00]} Rb8 {[%emt 0:03:13]} 14. axb5 {[%emt 0:00:00]} axb5 {[%emt 0:00:35]} 15. d4 {[%emt 0:00:00]} c4 {[%emt 0:00:29]} 16. Bc2 {[%emt 0:00:00]} b4 {[%emt 0:00:19]} 17. Ba4 {[%emt 0:00:00]} h6 {[%emt 0:05:46]} 18. Kh1 {[%emt 0:00:00]} Kd8 {[%emt 0:00:44]} 19. Bd2 {[%emt 0:00:00]} Kc7 {[%emt 0:01:57]} 20. cxb4 {[%emt 0:00:00]} Nxb4 {[%emt 0:01:34]} 21. b3 {[%emt 0:00:00]} Rhc8 {[%emt 0:09:30]} 22. bxc4 {[%emt 0:00:00]} dxc4 {[%emt 0:00:14]} 23. Bxd7 {[%emt 0:00:00]} Kxd7 {[%emt 0:00:14]} 24. Qa4+ {[%emt 0:00:00]} Nec6 {[%emt 0:02:57]} 25. Rab1 {[%emt 0:00:00]} Bf8 {[%emt 0:05:05]} 26. Rfc1 {[%emt 0:00:00]} Qa7 {[%emt 0:12:34]} 27. Qd1 {[%emt 0:00:00]} Nd3 {[%emt 0:00:45]} 28. Be3 {[%emt 0:00:00]} Nxc1 {[%emt 0:01:28]} 29. Rxc1 {[%emt 0:00:00]} Ke8 {[%emt 0:05:42]} 30. Rxc4 {[%emt 0:00:00]} Nb4 {[%emt 0:01:24]} 31. Rxc8+ {[%emt 0:00:00]} Rxc8 {[%emt 0:00:07]} 32. d5 {[%emt 0:00:00]} Qxe3 {[%emt 0:09:31]} 33. Qa4+ {[%emt 0:00:00]} Nc6 {[%emt 0:01:42]} 34. dxc6 {[%emt 0:00:00]} Qxe2 {[%emt 0:01:06]} 35. c7+ {[%emt 0:00:00]} Ke7 {[%emt 0:00:03]} 36. Qc6 {[%emt 0:00:00]} Qd1+ {[%emt 0:00:36]} 37. Ng1 {[%emt 0:00:00]} Qd7 {[%emt 0:00:13]} 0-1

[Event "Israeli Open Championship 2019"]
[Site "Jerusalem"]
[Date "2019.12.18"]
[Round "6.15"]
[White "Gunders, Elad"]
[Black "Slonimskij, Arkadij"]
[Result "1/2-1/2"]
[ECO "D02"]
[WhiteElo "1803"]
[BlackElo "2133"]
[Annotator "ChessBase"]
[PlyCount "106"]
[EventDate "2019.12.12"]
[EventType "swiss"]
[EventCountry "ISR"]
[SourceTitle "playchess.com"]
[Source "ChessBase"]
[SourceQuality "1"]
[TimeControl "5400+30"]

1. d4 {[%emt 0:00:00]} Nf6 {[%emt 0:00:00]} 2. Bf4 {[%emt 0:00:00]} d5 {[%emt 0:00:30]} 3. Nf3 {[%emt 0:00:00]} e6 {[%emt 0:00:16]} 4. e3 {[%emt 0:00:00]} c5 {[%emt 0:00:53]} 5. Nbd2 {[%emt 0:00:47]} Nc6 {[%emt 0:02:21]} 6. c3 {[%emt 0:00:08]} Nh5 {[%emt 0:01:17]} 7. Bg5 {[%emt 0:04:05]} Qb6 {[%emt 0:03:18]} 8. Qb3 {[%emt 0:06:01]} h6 {[%emt 0:01:53]} 9. Bh4 {[%emt 0:01:13]} f5 {[%emt 0:00:39]} 10. Bg3 {[%emt 0:02:55]} Nxg3 {[%emt 0:03:04]} 11. hxg3 {[%emt 0:00:19]} Qc7 {[%emt 0:00:14]} 12. Bb5 {[%emt 0:03:46]} c4 {[%emt 0:01:52]} 13. Qd1 {[%emt 0:02:16]} Bd6 {[%emt 0:00:58]} 14. Nh4 {[%emt 0:02:39]} Qf7 {[%emt 0:00:24]} 15. Nhf3 {[%emt 0:10:54]} Bd7 {[%emt 0:01:09]} 16. Bxc6 {[%emt 0:00:26]} Bxc6 {[%emt 0:00:42]} 17. Ne5 {[%emt 0:00:15]} Bxe5 {[%emt 0:01:23]} 18. dxe5 {[%emt 0:00:04]} O-O {[%emt 0:00:29]} 19. Qh5 {[%emt 0:01:21]} b5 {[%emt 0:07:57]} 20. Qxf7+ {[%emt 0:07:07]} Rxf7 {[%emt 0:01:06]} 21. Nf3 {[%emt 0:00:29]} Rb7 {[%emt 0:00:12]} 22. Nd4 {[%emt 0:00:21]} Bd7 {[%emt 0:00:02]} 23. a3 {[%emt 0:02:40]} a5 {[%emt 0:00:02]} 24. Kd2 {[%emt 0:01:34]} Rab8 {[%emt 0:00:28]} 25. Nc2 {[%emt 0:08:15]} Kf7 {[%emt 0:00:19]} 26. f4 {[%emt 0:05:20]} Rg8 {[%emt 0:01:46]} 27. Ke2 {[%emt 0:01:48]} Kg6 {[%emt 0:02:01]} 28. Kf2 {[%emt 0:02:40]} Bc8 {[%emt 0:02:33]} 29. Rh4 {[%emt 0:03:17]} Bd7 {[%emt 0:02:40]} 30. Rah1 {[%emt 0:01:24]} Kf7 {[%emt 0:01:14]} 31. Ra1 {[%emt 0:00:55]} Rbb8 {[%emt 0:01:27]} 32. Rhh1 {[%emt 0:09:18]} Ke7 {[%emt 0:01:22]} 33. Rh4 {[%emt 0:03:07]} Rh8 {[%emt 0:00:14]} 34. Rhh1 {[%emt 0:03:37]} Rbg8 {[%emt 0:01:10]} 35. Nd4 {[%emt 0:02:01]} Be8 {[%emt 0:01:19]} 36. Rab1 {[%emt 0:02:31]} Bd7 {[%emt 0:01:07]} 37. Ra1 {[%emt 0:01:42]} Kd8 {[%emt 0:04:01]} 38. Rh4 {[%emt 0:03:35]} Kc7 {[%emt 0:01:01]} 39. Rhh1 {[%emt 0:00:55]} Kb6 {[%emt 0:00:37]} 40. Nc2 {[%emt 0:00:11]} Ra8 {[%emt 0:00:54]} 41. Ke2 {[%emt 0:00:29]} Kc5 {[%emt 0:01:34]} 42. Kf2 {[%emt 0:00:42]} Ra6 {[%emt 0:00:58]} 43. Ke2 {[%emt 0:00:40]} Rha8 {[%emt 0:00:12]} 44. Rhg1 {[%emt 0:02:35]} Be8 {[%emt 0:00:29]} 45. Rh1 {[%emt 0:00:11]} Bf7 {[%emt 0:00:50]} 46. Kf2 {[%emt 0:00:09]} Rg8 {[%emt 0:00:46]} 47. Rh2 {[%emt 0:01:04]} h5 {[%emt 0:02:31]} 48. Rhh1 {[%emt 0:00:57]} Raa8 {[%emt 0:02:23]} 49. Rhg1 {[%emt 0:00:47]} Rh8 {[%emt 0:01:41]} 50. Rh1 {[%emt 0:00:07]} Rag8 {[%emt 0:00:18]} 51. Rab1 {[%emt 0:02:52]} a4 {[%emt 0:06:59]} 52. Rh2 {[%emt 0:01:09]} g5 {[%emt 0:00:43]} 53. Rbh1 {[%emt 0:00:42]} Rg7 {[%emt 0:04:41]} 1/2-1/2

[Event "Israeli Open Championship 2019"]
[Site "Jerusalem"]
[Date "2019.12.18"]
[Round "6.16"]
[White "Har-Even, Abir"]
[Black "Sobel, Ido"]
[Result "0-1"]
[ECO "A07"]
[WhiteElo "2104"]
[BlackElo "1711"]
[Annotator "NA"]
[PlyCount "157"]
[EventDate "2019.12.12"]
[EventType "swiss"]
[EventCountry "ISR"]
[SourceTitle "playchess.com"]
[Source "ChessBase"]
[SourceQuality "1"]
[TimeControl "5400+30"]

1. Nf3 {[%emt 0:00:00]} Nf6 {[%emt 0:00:23]} 2. d3 {[%emt 0:00:30]} d5 {[%emt 0:00:47]} 3. g3 {[%emt 0:00:08]} Bf5 {[%emt 0:02:54]} 4. Bg2 {[%emt 0:00:34]} c6 {[%emt 0:01:27]} 5. O-O {[%emt 0:02:41]} Nbd7 {[%emt 0:03:41]} 6. Nh4 {[%emt 0:05:42]} Bg6 {[%emt 0:07:14] A07: Réti Opening: New York and Capablanca Systems} (6... Be6 7. Nd2 g6 8. Ndf3 Bg7 9. Ng5 Nf8 10. Nxe6 Nxe6 11. e3 O-O 12. f4 Qb6 13. Kh1 Rad8 14. Qe2 {0-1 (25) Karjakin,S (2760)-Savchenko,B (2632) Moscow 2010}) 7. Nxg6 {[%emt 0:05:10]} hxg6 {[%emt 0:00:17]} 8. Nc3 {[%emt 0:02:22]} e6 {[%emt 0:08:59]} 9. e4 {[%emt 0:08:56]} Qc7 $146 {[%emt 0:06:56]} ({Predecessor:} 9... Be7 10. d4 dxe4 11. Nxe4 Nxe4 12. Bxe4 Nf6 13. Bg2 Qa5 14. Bd2 {½-½ (60) Doan,V (2142)-Luong,D (1767) Ho Chi Minh 2019}) 10. exd5 {[%emt 0:06:04]} Nxd5 {[%emt 0:02:21]} 11. Nxd5 {[%emt 0:06:49]} cxd5 {[%emt 0:00:12]} 12. Qe2 {[%emt 0:05:29]} Nf6 {[%emt 0:07:48]} 13. c4 {[%emt 0:02:09]} Rd8 {[%emt 0:02:33]} 14. Bg5 {[%emt 0:02:12]} dxc4 {[%emt 0:01:50]} 15. dxc4 {[%emt 0:04:00]} Be7 {[%emt 0:01:52]} 16. Rfd1 {[%emt 0:05:44]} O-O {[%emt 0:01:15]} 17. a3 {[%emt 0:04:11]} b6 {[%emt 0:06:53]} 18. b4 {[%emt 0:02:05]} Rxd1+ {[%emt 0:00:31]} 19. Rxd1 {[%emt 0:00:21]} Rd8 {[%emt 0:00:26]} 20. Rxd8+ {[%emt 0:01:25]} Qxd8 {[%emt 0:00:53]} 21. Qd2 {[%emt 0:00:27]} Qxd2 {[%emt 0:03:27]} 22. Bxd2 {[%emt 0:00:07]} Bd6 {[%emt 0:00:06]} 23. h3 {[%emt 0:11:13]} Nd7 {[%emt 0:01:38]} 24. f4 {[%emt 0:04:07]} Kf8 {[%emt 0:04:43]} 25. Kf2 {[%emt 0:02:58]} Ke7 {[%emt 0:01:45]} 26. Bc6 {[%emt 0:02:07]} Kd8 {[%emt 0:07:17]} 27. Bc3 $16 {[%emt 0:00:22]} Bf8 {[%emt 0:00:59]} 28. g4 {[%emt 0:02:32]} Kc7 {[%emt 0:12:53]} 29. Ba4 {[%emt 0:01:29]} Bd6 {[%emt 0:02:51]} 30. Kf3 {[%emt 0:00:36]} f6 {[%emt 0:00:29]} 31. Bc2 {[%emt 0:02:33]} Nf8 {[%emt 0:00:01]} 32. Ke4 {[%emt 0:01:26]} Nd7 {[%emt 0:03:32]} 33. Ba4 {[%emt 0:00:12]} Be7 {[%emt 0:04:09]} 34. Kf3 {[%emt 0:02:34]} Bf8 {[%emt 0:01:16]} 35. Bc2 {[%emt 0:01:11]} f5 {[%emt 0:00:23]} 36. g5 {[%emt 0:00:51]} Kd6 {[%emt 0:02:04]} 37. Ba4 {[%emt 0:01:02]} Kc7 {[%emt 0:00:56]} 38. h4 {[%emt 0:01:48]} Kd8 {[%emt 0:00:18]} 39. Ke3 {[%emt 0:00:49]} Ke7 {[%emt 0:00:41]} 40. Bd4 {[%emt 0:00:41]} Kd8 {[%emt 0:00:24]} 41. Bb5 {[%emt 0:02:13]} Kc7 {[%emt 0:00:34]} 42. Ba4 {[%emt 0:01:12]} Kd8 {[%emt 0:00:11]} 43. Bb3 {[%emt 0:00:19]} Ke8 {[%emt 0:00:44]} 44. Kd3 {[%emt 0:00:44]} Bd6 {[%emt 0:00:32]} 45. Be3 {[%emt 0:01:48]} e5 {[%emt 0:00:41]} 46. fxe5 {[%emt 0:00:23]} Bxe5 {[%emt 0:00:28]} 47. c5 {[%emt 0:00:18]} bxc5 {[%emt 0:00:29]} 48. bxc5 {[%emt 0:00:02]} Bg3 {[%emt 0:00:09]} 49. Bd4 {[%emt 0:00:53]} Bxh4 {[%emt 0:00:40]} 50. Ba4 {[%emt 0:00:22]} Kd8 {[%emt 0:00:20]} 51. Be3 {[%emt 0:00:59]} f4 {[%emt 0:00:14]} 52. Bxd7 {[%emt 0:00:19]} fxe3 {[%emt 0:01:03]} 53. Bc6 {[%emt 0:00:20]} Bxg5 {[%emt 0:00:14]} 54. Be4 {[%emt 0:00:06]} Be7 {[%emt 0:00:22]} 55. Kxe3 {[%emt 0:01:11]} Bxc5+ {[%emt 0:00:01]} 56. Kf4 {[%emt 0:00:02]} Bxa3 {[%emt 0:00:31]} 57. Bxg6 {[%emt 0:00:56]} Kc7 {[%emt 0:00:38]} 58. Ke4 {[%emt 0:00:11]} Kd6 {[%emt 0:00:18]} 59. Be8 {[%emt 0:00:46]} Kc5 {[%emt 0:00:13]} 60. Bg6 {[%emt 0:00:30]} Kb4 {[%emt 0:00:15]} 61. Kd3 {[%emt 0:00:04]} Bb2 {[%emt 0:01:01]} 62. Kc2 {[%emt 0:00:25]} Bf6 {[%emt 0:00:30]} 63. Kd3 {[%emt 0:00:33]} a5 {[%emt 0:00:12]} 64. Kc2 {[%emt 0:00:14]} a4 {[%emt 0:00:33]} 65. Kb1 {[%emt 0:00:18]} a3 {[%emt 0:00:08]} 66. Ka2 {[%emt 0:00:14]} Bb2 {[%emt 0:00:07]} 67. Kb1 {[%emt 0:00:23]} Kc3 {[%emt 0:00:07]} 68. Ka2 {[%emt 0:00:08]} Kd4 {[%emt 0:00:18]} 69. Kb1 {[%emt 0:00:22]} Ke5 {[%emt 0:00:08]} 70. Kc2 {[%emt 0:00:27]} Kf6 {[%emt 0:00:09]} 71. Bd3 {[%emt 0:00:31]} g5 {[%emt 0:00:17]} 72. Bc4 {[%emt 0:00:17]} Kf5 {[%emt 0:00:41]} 73. Kd3 {[%emt 0:00:11]} Kf4 {[%emt 0:00:23]} 74. Ke2 {[%emt 0:00:12]} Kg3 {[%emt 0:00:01]} 75. Kf1 {[%emt 0:00:33]} Kh2 {[%emt 0:00:01]} 76. Bd5 {[%emt 0:01:19]} g4 {[%emt 0:00:03]} 77. Ke2 {[%emt 0:00:18]} g3 {[%emt 0:00:07]} 78. Kd2 {[%emt 0:00:06]} a2 {[%emt 0:00:15]} 79. Kc2 {[%emt 0:01:20]} 0-1

[Event "Israeli Open Championship 2019"]
[Site "Jerusalem"]
[Date "2019.12.18"]
[Round "6.17"]
[White "Levin, Natan"]
[Black "Gruzman, Ilya"]
[Result "0-1"]
[ECO "D02"]
[WhiteElo "1807"]
[BlackElo "1889"]
[Annotator "NA"]
[PlyCount "97"]
[EventDate "2019.12.12"]
[EventType "swiss"]
[EventCountry "ISR"]
[SourceTitle "playchess.com"]
[Source "ChessBase"]
[SourceQuality "1"]
[TimeControl "5400+30"]

1. d4 {[%emt 0:11:35]} Nf6 {[%emt 0:00:00]} 2. Nf3 {[%emt 0:00:17]} d5 {[%emt 0:00:00]} 3. c3 {[%emt 0:00:33]} c5 {[%emt 0:00:00]} 4. a3 {[%emt 0:00:30]} e6 {[%emt 0:05:01]} 5. g3 {[%emt 0:01:55]} Nc6 {[%emt 0:04:08]} 6. Bg2 {[%emt 0:01:45]} Bd6 {[%emt 0:02:15]} 7. O-O {[%emt 0:01:43]} Ne4 {[%emt 0:04:28]} 8. Nbd2 {[%emt 0:04:12]} Nxd2 {[%emt 0:00:23]} 9. Qxd2 {[%emt 0:00:58]} O-O {[%emt 0:07:52]} 10. dxc5 {[%emt 0:01:25]} Bxc5 {[%emt 0:00:10]} 11. b4 {[%emt 0:02:46]} Be7 $11 {[%emt 0:01:36]} 12. Rd1 {[%emt 0:01:11]} Bf6 {[%emt 0:00:40]} 13. Bb2 {[%emt 0:01:33]} b5 {[%emt 0:08:07]} 14. a4 {[%emt 0:02:42]} Qb6 {[%emt 0:11:30]} 15. axb5 {[%emt 0:03:07]} Qxb5 {[%emt 0:02:33]} 16. Bf1 {[%emt 0:00:42]} Qb6 {[%emt 0:03:02]} 17. e3 {[%emt 0:02:43]} Bb7 {[%emt 0:01:25]} 18. Qe2 {[%emt 0:12:14]} a6 {[%emt 0:08:51]} 19. Rab1 {[%emt 0:02:56]} e5 {[%emt 0:06:03]} 20. Ba1 {[%emt 0:03:37]} e4 {[%emt 0:05:25]} 21. Ne1 {[%emt 0:02:36]} Ne5 {[%emt 0:00:51]} 22. b5 {[%emt 0:04:23]} a5 {[%emt 0:04:11]} 23. Bg2 {[%emt 0:05:23]} Rac8 {[%emt 0:01:14]} 24. Nc2 {[%emt 0:10:41]} Nc4 {[%emt 0:00:48]} 25. Nd4 {[%emt 0:01:28]} Rc5 {[%emt 0:01:50]} 26. Qa2 {[%emt 0:04:41]} Bxd4 {[%emt 0:01:23]} 27. cxd4 {[%emt 0:00:54]} Rxb5 {[%emt 0:01:20]} 28. Bc3 {[%emt 0:05:57]} Ra8 {[%emt 0:02:46]} 29. Bf1 {[%emt 0:01:12]} Bc6 {[%emt 0:03:36]} 30. Rxb5 {[%emt 0:01:42]} Bxb5 {[%emt 0:01:14]} 31. Bb4 {[%emt 0:00:28]} Qa6 {[%emt 0:02:05]} 32. Bc5 {[%emt 0:00:42]} a4 {[%emt 0:00:43]} 33. Bxc4 {[%emt 0:03:47]} Bxc4 {[%emt 0:00:23]} 34. Qa3 {[%emt 0:01:21]} Rb8 {[%emt 0:00:58]} 35. Ra1 {[%emt 0:00:36]} Rb3 {[%emt 0:01:04]} 36. Qc1 {[%emt 0:00:36]} h6 {[%emt 0:01:11]} 37. h3 {[%emt 0:00:16]} Qb5 {[%emt 0:00:46]} 38. Ba3 {[%emt 0:01:16]} Qa5 {[%emt 0:01:05]} 39. Rb1 {[%emt 0:00:33]} Qb5 {[%emt 0:01:24]} 40. Rxb3 {[%emt 0:00:30]} Qxb3 {[%emt 0:00:45]} 41. Bc5 {[%emt 0:00:31]} Qd3 {[%emt 0:00:51]} 42. Bb4 {[%emt 0:00:57]} Qe2 {[%emt 0:00:39]} 43. Kg2 {[%emt 0:01:28]} Kh7 {[%emt 0:00:58]} 44. Qd2 {[%emt 0:00:58]} Qf1+ {[%emt 0:00:08]} 45. Kh2 {[%emt 0:00:11]} a3 {[%emt 0:01:19]} 46. Qe1 {[%emt 0:00:11]} Qd3 {[%emt 0:00:56]} 47. Bc3 {[%emt 0:00:36]} a2 {[%emt 0:00:34]} 48. Ba1 {[%emt 0:01:01]} Qb1 {[%emt 0:00:25]} 49. Qc3 {[%emt 0:01:11]} 0-1

[Event "Israeli Open Championship 2019"]
[Site "Jerusalem"]
[Date "2019.12.18"]
[Round "6.18"]
[White "Berenboym, Igor"]
[Black "Elsner, Yair"]
[Result "0-1"]
[ECO "B30"]
[WhiteElo "2100"]
[BlackElo "1585"]
[Annotator "NA"]
[PlyCount "106"]
[EventDate "2019.12.12"]
[EventType "swiss"]
[EventCountry "ISR"]
[SourceTitle "playchess.com"]
[Source "ChessBase"]
[SourceQuality "1"]
[TimeControl "5400+30"]

1. e4 {[%emt 0:00:38]} c5 {[%emt 0:00:00]} 2. Nf3 {[%emt 0:00:11]} Nc6 {[%emt 0:00:00]} 3. Bb5 {[%emt 0:00:05]} Nf6 {[%emt 0:00:10]} 4. e5 {[%emt 0:00:43]} Nd5 {[%emt 0:00:06]} 5. Nc3 {[%emt 0:00:07]} Nc7 {[%emt 0:02:41]} 6. Bxc6 {[%emt 0:02:20]} dxc6 {[%emt 0:00:13]} 7. d3 {[%emt 0:00:47] B30: Sicilian: 2...Nc6 3 Bb5, lines without ...g6} (7. h3 Ne6 8. O-O g6 9. d3 Bg7 10. Re1 b6 11. Ne4 O-O 12. b3 a5 13. a4 Nd4 14. Bb2 h6 15. Bxd4 cxd4 16. Qd2 c5 17. Re2 Be6 18. Rae1 Qd7 19. Qf4 Rfe8 {½-½ (67) Giri,A (2783)-Demchenko,A (2679) St Petersburg 2018}) 7... g6 {[%emt 0:04:26]} 8. Be3 {[%emt 0:01:01]} b6 {[%emt 0:00:53]} 9. Qd2 {[%emt 0:00:33]} h6 $146 {[%emt 0:04:17]} ({Predecessor:} 9... Ne6 10. Ne4 Bg7 11. Bh6 O-O 12. h4 f5 13. Nc3 f4 14. Bxg7 Kxg7 {1-0 (56) Olofsson Dolk,M (2172)-Winfridsson,H (1971) Vaxjo 2019}) 10. O-O-O {[%emt 0:02:00]} Bg7 {[%emt 0:00:20]} 11. d4 {[%emt 0:03:34]} Bg4 {[%emt 0:11:27]} 12. Ne4 {[%emt 0:24:20]} (12. Qe2 $11) 12... Bxf3 {[%emt 0:06:00]} 13. gxf3 {[%emt 0:00:02]} cxd4 {[%emt 0:00:21]} 14. Bxd4 {[%emt 0:00:18]} Ne6 {[%emt 0:00:20]} 15. Qc3 {[%emt 0:08:54]} Qc7 {[%emt 0:12:04]} 16. f4 {[%emt 0:04:28]} Nxf4 {[%emt 0:04:34]} 17. Rhe1 {[%emt 0:00:07]} (17. Qf3 $17 {might work better.} Ne6 18. Bc3) 17... O-O {[%emt 0:19:44]} 18. Ng3 {[%emt 0:16:09]} Rad8 {[%emt 0:09:53]} 19. Qc4 {[%emt 0:04:46]} Ne6 {[%emt 0:01:10]} 20. Bc3 {[%emt 0:10:17]} Rxd1+ {[%emt 0:02:08]} 21. Kxd1 {[%emt 0:00:01]} Rd8+ {[%emt 0:00:41]} 22. Kc1 {[%emt 0:00:07]} Rd5 $17 {[%emt 0:03:36]} (22... b5 $19 23. Qe4 c5) 23. f4 {[%emt 0:00:14]} b5 {[%emt 0:01:44]} 24. Qe4 {[%emt 0:00:25]} Nc5 {[%emt 0:03:26]} 25. Qe3 {[%emt 0:03:11]} Na4 {[%emt 0:05:05]} 26. Ne4 {[%emt 0:02:02]} Nxc3 27. Nxc3 Rd8 {[%emt 0:02:57]} 28. h4 {[%emt 0:01:41]} Qb6 {[%emt 0:02:05]} 29. Qg3 {[%emt 0:01:02]} Qd4 {[%emt 0:00:56]} 30. Rd1 {[%emt 0:00:38]} Qb6 {[%emt 0:00:13]} 31. Rxd8+ {[%emt 0:01:06]} Qxd8 {[%emt 0:00:06]} 32. h5 {[%emt 0:00:12]} Kh7 {[%emt 0:01:01]} 33. e6 {[%emt 0:01:03]} gxh5 {[%emt 0:01:24]} 34. exf7 {[%emt 0:00:23]} Qd4 {[%emt 0:01:51]} 35. Nd1 {[%emt 0:01:53]} Qd5 {[%emt 0:00:34]} 36. Ne3 {[%emt 0:04:28]} Qxf7 {[%emt 0:00:14]} 37. f5 {[%emt 0:00:00]} Qf6 {[%emt 0:00:33]} 38. Kd2 {[%emt 0:01:20]} Qd6+ {[%emt 0:00:24]} 39. Qxd6 {[%emt 0:00:15]} exd6 {[%emt 0:00:00]} 40. c3 {[%emt 0:00:00]} Be5 {[%emt 0:00:00]} 41. Kd3 {[%emt 0:00:00]} d5 {[%emt 0:00:34]} 42. Ke2 {[%emt 0:00:17]} Kg7 {[%emt 0:00:23]} 43. Nc2 {[%emt 0:00:19]} a5 {[%emt 0:00:14]} 44. b4 {[%emt 0:02:48]} a4 {[%emt 0:00:09]} 45. Kd3 {[%emt 0:00:56]} Kf6 {[%emt 0:00:09]} 46. Ne3 {[%emt 0:01:32]} Bf4 {[%emt 0:00:30]} 47. Nc2 {[%emt 0:00:29]} h4 {[%emt 0:01:35]} 48. Ke2 {[%emt 0:00:18]} h3 {[%emt 0:00:26]} 49. Kf3 {[%emt 0:00:08]} Be5 {[%emt 0:00:22]} 50. Ne3 {[%emt 0:00:15]} h5 {[%emt 0:00:35]} 51. Nd1 {[%emt 0:00:50]} h2 {[%emt 0:00:10]} 52. Kg2 {[%emt 0:00:10]} Kxf5 {[%emt 0:00:19]} 53. Ne3+ {[%emt 0:00:09]} Ke4 {[%emt 0:00:29]} 0-1

[Event "Israeli Open Championship 2019"]
[Site "Jerusalem"]
[Date "2019.12.19"]
[Round "7.5"]
[White "Tsyn, Igor"]
[Black "Gorodetzky, Matan"]
[Result "1-0"]
[ECO "C08"]
[WhiteElo "2154"]
[BlackElo "2284"]
[Annotator "NA"]
[PlyCount "77"]
[EventDate "2019.12.12"]
[EventType "swiss"]
[EventCountry "ISR"]
[SourceTitle "playchess.com"]
[Source "ChessBase"]
[SourceQuality "1"]
[TimeControl "5400+30"]

{[%evp 11,64,17,26,30,15,18,30,27,30,32767,32767,32767,17,5,12,32767,13,16,32767,32767,32767,32767,50,40,65,68,67,32767,32767,32767,118,35,44,35,32767,32767,32767,0,0,32767,0,0,0,0,32767,0,32767,32767,0,0,0,0,0,0,0]} 1. e4 {[%emt 0:00:00]} e6 {[%emt 0:00:00]} 2. d4 {[%emt 0:00:00]} d5 {[%emt 0:00:00]} 3. Nd2 {[%emt 0:00:00]} a6 {[%emt 0:00:14]} 4. Ngf3 {[%emt 0:01:58]} c5 {[%emt 0:00:15]} 5. exd5 {[%emt 0:02:37]} exd5 {[%emt 0:01:14]} 6. dxc5 {[%emt 0:03:53]} Bxc5 {[%emt 0:00:18]} 7. Bd3 {[%emt 0:00:06]} Qe7+ {[%emt 0:02:34]} 8. Qe2 {[%emt 0:00:47]} Nc6 {[%emt 0:02:39]} 9. Nb3 {[%emt 0:02:03]} Bb6 {[%emt 0:00:34]} 10. c3 {[%emt 0:01:20]} Bg4 {[%emt 0:01:29] C08: French Tarrasch: 3...c5 4 exd5 exd5 sidelines} 11. Qxe7+ {[%emt 0:13:27]} Ngxe7 {[%emt 0:00:46]} 12. Nbd4 {[%emt 0:00:11]} O-O $146 {[%emt 0:08:37]} ({Predecessor:} 12... Nxd4 13. Nxd4 Bxd4 14. cxd4 Rc8 15. Bd2 Kd7 16. Bc3 h5 17. h4 Bf5 18. Be2 {½-½ (49) Velicka,P (2420)-Stocek,J (2567) Czech Republic 2018}) 13. Be3 {[%emt 0:22:45]} Bxf3 {[%emt 0:09:43]} 14. Nxf3 {[%emt 0:01:15]} Bxe3 {[%emt 0:00:44]} 15. fxe3 {[%emt 0:00:02]} Rfe8 {[%emt 0:02:13]} 16. O-O-O {[%emt 0:01:27]} Nc8 {[%emt 0:02:49]} 17. Rhe1 {[%emt 0:10:07]} Nd6 {[%emt 0:24:46]} 18. Bc2 {[%emt 0:01:28]} Nc4 {[%emt 0:00:32]} 19. e4 {[%emt 0:19:06]} dxe4 {[%emt 0:03:33]} 20. Bxe4 {[%emt 0:00:02]} Kf8 {[%emt 0:00:56] [#]} 21. Bxc6 {[%emt 0:03:41]} ({Inferior is} 21. Bxh7 g6 $17) (21. Ng5 $1 $16) 21... bxc6 {[%emt 0:01:35]} 22. Rd4 {[%emt 0:01:30]} Rxe1+ {[%emt 0:09:01]} 23. Nxe1 {[%emt 0:00:01]} Ne3 {[%emt 0:00:39]} 24. Kd2 {[%emt 0:05:58]} Re8 {[%emt 0:01:02]} 25. Ra4 {[%emt 0:03:49]} c5 {[%emt 0:06:48]} 26. b3 {[%emt 0:00:21]} Nf1+ {[%emt 0:08:54]} 27. Kd1 {[%emt 0:00:01]} Ne3+ {[%emt 0:01:27]} 28. Kd2 {[%emt 0:00:31]} Nf1+ {[%emt 0:00:14]} 29. Kd1 {[%emt 0:00:07]} Nxh2 {[%emt 0:04:47]} 30. Rh4 {[%emt 0:01:40]} Nf1 {[%emt 0:00:04]} 31. Rxh7 {[%emt 0:00:05]} Ne3+ {[%emt 0:01:15]} 32. Kd2 {[%emt 0:01:50]} Nf1+ $11 {[%emt 0:00:06]} 33. Kd1 {[%emt 0:00:02]} Kg8 {[%emt 0:00:53]} 34. Rh3 {[%emt 0:01:49]} f5 {[%emt 0:00:32]} 35. Rf3 {[%emt 0:00:35]} Nh2 {[%emt 0:03:53]} 36. Rxf5 {[%emt 0:00:19]} Ng4 {[%emt 0:00:12]} 37. Rf3 {[%emt 0:01:47]} c4 {[%emt 0:00:25]} 38. Rf4 {[%emt 0:01:19]} cxb3 {[%emt 0:01:28]} 39. Rxg4 {[%emt 0:00:25]} 1-0